fUST/lending_fUST_20240210
["ID","MTS","AMOUNT","RATE_DAILY","PERIOD"]
[313634492,1707505771282,-500.0,0.00020822,2]
[313634493,1707505771302,-1317.88198219,0.00021564,2]
[313634494,1707505771333,-657.34209082,0.000219,2]
[313634495,1707505771362,-326.17134224,0.00022,2]
[313634496,1707505771386,-427.41735822,0.00022,2]
[313634497,1707505771410,-200.0,0.00022226,7]
[313634498,1707505771432,-200.0,0.00022226,7]
[313634499,1707505771455,-359.07194176,0.00022226,7]
[313634500,1707505771815,-2410.00256002,0.0002082,2]
[313634501,1707505771837,-1755.69206691,0.0002082,2]
[313634502,1707505771858,-22.92805824,0.00022226,7]
[313634504,1707505781832,154.92253873,0.00021088,4]
[313634511,1707505799693,154.92253873,0.00021087,4]
[313634520,1707505821698,154.92253873,0.00021087,4]
[313634594,1707505832466,-1263.59915182,0.00023,2]
[313634597,1707505832475,-3328.64967646,0.00023197,2]
[313634600,1707505832484,-2865.93395234,0.00023422,3]
[313634638,1707505837693,154.92253873,0.00021087,4]
[313634647,1707505839411,-1671.10073941,0.00023422,3]
[313634648,1707505839531,-257.81530825,0.00023422,3]
[313634649,1707505839542,-692.18469175,0.00023422,3]
[313634661,1707505841835,-866.40555785,0.00023422,3]
[313634697,1707505845161,-622.73537509,0.00023422,3]
[313634703,1707505845960,300.0,0.00021088,2]
[313634729,1707505846640,-5305.03437531,0.00023422,3]
[313634730,1707505846652,-6238.63,0.00023422,3]
[313634731,1707505846663,-427.41735822,0.0002343,2]
[313634732,1707505846672,-305.25738812,0.0002343,2]
[313634733,1707505846682,-157.72857921,0.00023431,2]
[313634734,1707505846691,-488.54386898,0.00023431,2]
[313634735,1707505846700,-155.52453245,0.00023432,2]
[313634736,1707505846710,-1742.97736773,0.00023432,2]
[313634737,1707505846719,-539.63111065,0.00023432,2]
[313634738,1707505846729,-73896.87958201,0.00023432,2]
[313634739,1707505846739,-5511.39291077,0.00023433,2]
[313634740,1707505846748,-1041.74666134,0.00023433,2]
[313634741,1707505846758,-1294.85605915,0.00023433,2]
[313634742,1707505846768,-12430.29625965,0.00023433,2]
[313634743,1707505846777,-3762.336791,0.00023433,2]
[313634744,1707505846786,-16488.00946425,0.00023433,2]
[313634745,1707505846800,-5000.0,0.00023433,2]
[313634746,1707505846809,-2648.74846212,0.00023433,2]
[313634829,1707505847631,1832.17488523,0.00021088,2]
[313634852,1707505854553,594.54366579,0.00021087,5]
[313634853,1707505855721,154.92253873,0.00021087,4]
[313634855,1707505859312,154.92253873,0.00021088,2]
[313634856,1707505859606,30634.5774936,0.00021088,2]
[313634877,1707506057909,1157.591629,0.00027397,120]
[313634879,1707506083000,-254.69237166,0.00021088,15]
[313634889,1707506194798,2000.0,0.00029,30]
[313634907,1707506563621,868.193721,0.00027397,120]
[313634920,1707506734338,252.441397,0.00017295,2]
[313634932,1707506956121,-154.92253873,0.00018274,3]
[313634933,1707506956141,-154.92253873,0.00018274,2]
[313634934,1707506956161,-2045.48652279,0.00018275,2]
[313634935,1707506956180,-563.32935938,0.00018276,2]
[313634936,1707506956200,-179.25607649,0.00018276,2]
[313634937,1707506956219,-523.77203648,0.00018277,2]
[313634938,1707506956238,-19926.02124891,0.00018277,2]
[313634939,1707506956260,-1297.69513983,0.00018278,2]
[313634940,1707506956281,-24900.0,0.00018307,2]
[313634941,1707506956303,-164.04462009,0.00018952,2]
[313634942,1707506956326,-197.70580093,0.00018976,2]
[313634943,1707506956347,-200.0,0.00019194,2]
[313634944,1707506956366,-197.70580091,0.00020344,2]
[313634945,1707506956386,-5741.08,0.00021078,3]
[313634946,1707506956406,-4784.23,0.00021078,3]
[313634947,1707506956427,-28994.78694617,0.00021088,2]
[313634948,1707506956446,-164.64584853,0.00021088,2]
[313634949,1707506956466,-280.0,0.00021113,7]
[313634950,1707506956486,-807.24840394,0.00021332,2]
[313634951,1707506956506,-197.70580091,0.00021712,2]
[313634952,1707506956526,-412.18929477,0.0002219,2]
[313634953,1707506957079,-175.76112221,0.00018273,2]
[313634954,1707506957101,-3986.86,0.00021078,3]
[313634955,1707506957123,-88.78320502,0.0002219,2]
[313635028,1707507032735,-36.04733337,0.00021087,4]
[313635052,1707507039056,-118.87520536,0.00021087,4]
[313635053,1707507039066,-96.9024291,0.0002219,2]
[313635054,1707507039075,-2045.48652279,0.00022898,2]
[313635055,1707507039084,-6806.55216034,0.00022899,2]
[313635056,1707507039094,-185.980754,0.000229,2]
[313635057,1707507039103,-197.70580091,0.0002308,2]
[313635058,1707507039112,-391.0,0.00023224,7]
[313635059,1707507039121,-1602.23,0.00023422,3]
[313635060,1707507039130,-3055.35,0.00023422,3]
[313635061,1707507039139,-1334.59335987,0.0002343,2]
[313635062,1707507039148,-1311.85486598,0.0002343,2]
[313635063,1707507039158,-179.03758236,0.0002343,2]
[313635064,1707507039167,-157.05883364,0.0002343,2]
[313635065,1707507039176,-523.3915647,0.0002343,2]
[313635066,1707507039185,-174.59724927,0.0002343,2]
[313635067,1707507039194,-580.99546403,0.0002343,2]
[313635068,1707507039203,-564.61658552,0.00023431,3]
[313635069,1707507039212,-5996.20819891,0.00023431,2]
[313635070,1707507039222,-1082.66189114,0.00023432,2]
[313635071,1707507039231,-1947.3753187,0.00023432,2]
[313635072,1707507039240,-65328.206676,0.00023432,2]
[313635073,1707507039249,-4632.30998223,0.00023433,2]
[313635074,1707507039260,-7984.13058721,0.00023455,2]
[313635075,1707507039269,-24148.40832921,0.00023455,2]
[313635076,1707507039278,-1156.36792477,0.00023826,2]
[313635077,1707507039287,-295.3034159,0.00024384,2]
[313635078,1707507039298,-153.0,0.00024384,2]
[313635079,1707507039307,-153.0,0.00024384,2]
[313635080,1707507039316,-153.0,0.00024384,2]
[313635081,1707507039325,-200.0032966,0.00024384,2]
[313635082,1707507039334,-399.3530697,0.00024384,2]
[313635083,1707507039344,-200.0032966,0.00024384,2]
[313635084,1707507039353,-372.85209685,0.00024406,2]
[313635085,1707507039362,-197.70580091,0.00024448,2]
[313635086,1707507039371,-500.24501978,0.0002447,5]
[313635087,1707507039380,-175.24530589,0.000245,2]
[313635088,1707507039389,-376.72428881,0.00024545,2]
[313635089,1707507039398,-500.0,0.00024545,2]
[313635090,1707507039407,-500.0,0.00024545,2]
[313635091,1707507039415,-500.0,0.00024545,2]
[313635092,1707507039424,-500.0,0.00024545,2]
[313635093,1707507039433,-209.02620281,0.00024545,2]
[313635094,1707507039443,-500.0,0.00024545,2]
[313635095,1707507039451,-500.32433007,0.00024545,2]
[313635096,1707507039460,-500.0,0.00024545,2]
[313635097,1707507039469,-500.0,0.00024545,2]
[313635098,1707507039478,-500.0,0.00024545,2]
[313635099,1707507039487,-500.0,0.00024545,2]
[313635100,1707507039496,-500.0,0.00024545,2]
[313635101,1707507039505,-500.0,0.00024545,2]
[313635102,1707507039515,-500.0,0.00024545,2]
[313635103,1707507039524,-500.0,0.00024545,2]
[313635104,1707507039533,-500.0,0.00024545,2]
[313635105,1707507039542,-500.0,0.00024545,2]
[313635106,1707507039551,-500.0,0.00024545,2]
[313635107,1707507039561,-500.0,0.00024545,2]
[313635108,1707507039570,-500.0,0.00024545,2]
[313635109,1707507039578,-500.0,0.00024545,2]
[313635110,1707507039588,-500.0,0.00024545,2]
[313635111,1707507039597,-511.50977132,0.00024545,2]
[313635112,1707507039606,-500.0,0.00024545,2]
[313635113,1707507039616,-500.0,0.00024545,2]
[313635114,1707507039625,-500.0,0.00024545,2]
[313635115,1707507039634,-623.70645141,0.00024545,2]
[313635116,1707507039643,-500.0,0.00024545,2]
[313635117,1707507039653,-500.0,0.00024545,2]
[313635118,1707507039662,-500.0,0.00024545,2]
[313635119,1707507039738,-500.0,0.00024545,2]
[313635120,1707507039747,-500.0,0.00024545,2]
[313635121,1707507039757,-500.0,0.00024545,2]
[313635122,1707507039766,-500.0,0.00024545,2]
[313635123,1707507039776,-500.0,0.00024545,2]
[313635124,1707507039785,-500.0,0.00024545,2]
[313635125,1707507039794,-500.0,0.00024545,2]
[313635126,1707507039803,-500.0,0.00024545,2]
[313635127,1707507039813,-250.0,0.00024545,2]
[313635128,1707507039822,-500.0,0.00024545,2]
[313635129,1707507039831,-500.0,0.00024545,2]
[313635130,1707507039840,-500.0,0.00024545,2]
[313635131,1707507039849,-500.0,0.00024545,2]
[313635132,1707507039859,-500.0,0.00024545,2]
[313635133,1707507039868,-500.0,0.00024545,2]
[313635134,1707507039877,-500.0,0.00024545,2]
[313635135,1707507039886,-504.68408727,0.00024545,2]
[313635136,1707507039896,-500.0,0.00024545,2]
[313635137,1707507039905,-500.0,0.00024545,2]
[313635138,1707507039914,-500.0,0.00024545,2]
[313635139,1707507039923,-500.0,0.00024545,2]
[313635140,1707507039932,-500.0,0.00024545,2]
[313635141,1707507039942,-500.0,0.00024545,2]
[313635142,1707507039951,-570.12664321,0.00024545,2]
[313635143,1707507039960,-500.0,0.00024545,2]
[313635144,1707507039970,-500.0,0.00024545,2]
[313635145,1707507039979,-500.0,0.00024545,2]
[313635146,1707507039988,-500.0,0.00024545,2]
[313635147,1707507039997,-500.0,0.00024545,2]
[313635148,1707507040006,-500.0,0.00024545,2]
[313635149,1707507040016,-500.0,0.00024545,2]
[313635150,1707507040025,-500.0,0.00024545,2]
[313635151,1707507040035,-500.0,0.00024545,2]
[313635152,1707507040044,-500.0,0.00024545,2]
[313635153,1707507040053,-500.0,0.00024545,2]
[313635154,1707507040062,-500.0,0.00024545,2]
[313635155,1707507040071,-500.0,0.00024545,2]
[313635156,1707507040080,-500.0,0.00024545,2]
[313635157,1707507040089,-500.0,0.00024545,2]
[313635158,1707507040098,-500.0,0.00024545,2]
[313635159,1707507040108,-500.0,0.00024545,2]
[313635160,1707507040117,-500.0,0.00024545,2]
[313635161,1707507040127,-500.0,0.00024545,2]
[313635162,1707507040137,-500.0,0.00024545,2]
[313635163,1707507040146,-500.0,0.00024545,2]
[313635164,1707507040154,-500.0,0.00024545,2]
[313635165,1707507040164,-500.0,0.00024545,2]
[313635166,1707507040173,-500.0,0.00024545,2]
[313635167,1707507040182,-500.0,0.00024545,2]
[313635168,1707507040191,-500.0,0.00024545,2]
[313635169,1707507040203,-500.0,0.00024545,2]
[313635170,1707507040212,-267.4234768,0.00024545,2]
[313635200,1707507041875,-232.5765232,0.00024545,2]
[313635202,1707507041885,-500.0,0.00024545,2]
[313635204,1707507041894,-500.0,0.00024545,2]
[313635206,1707507041903,-500.0,0.00024545,2]
[313635207,1707507041912,-500.0,0.00024545,2]
[313635209,1707507041921,-600.67524323,0.00024545,2]
[313635210,1707507041930,-500.0,0.00024545,2]
[313635212,1707507041940,-500.0,0.00024545,2]
[313635214,1707507041949,-500.0,0.00024545,2]
[313635216,1707507041958,-500.0,0.00024545,2]
[313635218,1707507042033,-500.0,0.00024545,2]
[313635219,1707507042042,-500.0,0.00024545,2]
[313635220,1707507042051,-500.0,0.00024545,2]
[313635221,1707507042060,-500.0,0.00024545,2]
[313635222,1707507042070,-500.0,0.00024545,2]
[313635223,1707507042079,-500.0,0.00024545,2]
[313635224,1707507042088,-500.0,0.00024545,2]
[313635225,1707507042097,-500.0,0.00024545,2]
[313635226,1707507042106,-500.0,0.00024545,2]
[313635227,1707507042115,-500.0,0.00024545,2]
[313635228,1707507042124,-500.0,0.00024545,2]
[313635229,1707507042134,-500.0,0.00024545,2]
[313635230,1707507042143,-500.0,0.00024545,2]
[313635231,1707507042152,-151.0,0.00024546,2]
[313635232,1707507042161,-151.0,0.00024546,2]
[313635233,1707507042170,-151.0,0.00024547,2]
[313635234,1707507042179,-151.0,0.00024547,2]
[313635235,1707507042187,-151.0,0.00024547,2]
[313635236,1707507042197,-151.0,0.00024547,2]
[313635237,1707507042206,-2608.221682,0.00024548,2]
[313635238,1707507042215,-2608.221682,0.00024548,2]
[313635239,1707507042224,-30027.87136375,0.00024554,2]
[313635332,1707507046730,-500.0,0.00024545,2]
[313635333,1707507046742,-500.0,0.00024545,2]
[313635334,1707507046752,-500.0,0.00024545,2]
[313635335,1707507046762,-596.20405572,0.00024545,2]
[313635336,1707507046772,-500.0,0.00024545,2]
[313635337,1707507046782,-500.0,0.00024545,2]
[313635338,1707507046791,-500.0,0.00024545,2]
[313635339,1707507046800,-157.12594428,0.00024545,2]
[313635348,1707507076280,2000.0,0.00029,30]
[313635351,1707507117535,651.14529,0.00027397,120]
[313635361,1707507187640,-5000000.0,0.0004294,60]
[313635364,1707507191218,-5000000.0,0.0004294,60]
[313635399,1707507602723,488.358967,0.00027397,120]
[313635458,1707507975530,2000.0,0.00029,30]
[313635467,1707508143291,366.269225,0.00027397,120]
[313635468,1707508145115,-232.52505957,0.00021253,2]
[313635469,1707508145138,-154.92253873,0.00021254,4]
[313635470,1707508145159,-2823.1509297,0.00021255,2]
[313635471,1707508145181,-5833.67,0.00021256,2]
[313635472,1707508145204,-24900.0,0.00021256,2]
[313635473,1707508145225,-3000.0,0.00021381,2]
[313635474,1707508145247,-247.345238,0.00021657,2]
[313635475,1707508145269,-166.666666,0.00021918,2]
[313635476,1707508145290,-159.9108223,0.00022003,2]
[313635477,1707508145312,-1283.86050131,0.00022095,2]
[313635478,1707508145333,-134.8215364,0.00022318,7]
[313635488,1707508161113,-154.92253873,0.00021997,4]
[313635489,1707508161135,-11.74412727,0.00022318,7]
[313635554,1707508234102,-154.92253873,0.00021997,4]
[313635556,1707508234112,-53.43433633,0.00022318,7]
[313635558,1707508234122,-1832.17488523,0.00022318,2]
[313635560,1707508234131,-300.0,0.00022318,2]
[313635562,1707508234141,-2091.43243292,0.00022318,2]
[313635564,1707508234150,-168.476148,0.00023169,2]
[313635566,1707508234160,-6547.26495816,0.00023455,2]
[313635568,1707508234173,-14774.74374759,0.00023455,2]
[313635570,1707508234183,-5603.14334878,0.00023455,2]
[313635571,1707508234193,-5000.0,0.00023455,2]
[313635572,1707508234203,-836.82648605,0.00023455,2]
[313635660,1707508239449,-247.345238,0.00022598,2]
[313635661,1707508239458,-1558.41269011,0.00023455,2]
[313635662,1707508239467,-646.81839624,0.00023766,2]
[313635663,1707508239477,-1000.0,0.00024,24]
[313635664,1707508239486,-171.0549174,0.00024,2]
[313635665,1707508239496,-4040.85811813,0.00024024,2]
[313635666,1707508239505,-200.0032966,0.00024025,2]
[313635667,1707508239514,-200.0032966,0.00024025,2]
[313635668,1707508239523,-200.0032966,0.00024025,2]
[313635669,1707508239532,-200.0032966,0.00024025,2]
[313635670,1707508239541,-150.67095252,0.00024188,2]
[313635671,1707508239551,-18755.07522011,0.00024298,2]
[313635672,1707508239561,-2166.55740101,0.00024298,2]
[313635673,1707508239570,-156.5099535,0.00024384,2]
[313635674,1707508239579,-153.0,0.00024384,2]
[313635675,1707508239588,-153.0,0.00024384,2]
[313635676,1707508239597,-153.0,0.00024384,2]
[313635677,1707508239607,-153.0,0.00024384,2]
[313635678,1707508239616,-153.0,0.00024384,2]
[313635679,1707508239625,-153.0,0.00024384,2]
[313635680,1707508239634,-153.0,0.00024384,2]
[313635681,1707508239643,-153.0,0.00024384,2]
[313635682,1707508239653,-153.0,0.00024384,2]
[313635683,1707508239663,-375.4624683,0.00024384,2]
[313635684,1707508239677,-3279.71,0.00024421,3]
[313635685,1707508239686,-3935.66,0.00024431,3]
[313635686,1707508239696,-17911.16350422,0.00024441,2]
[313635687,1707508239704,-208.64430105,0.00024441,2]
[313635688,1707508239714,-155.07747611,0.00024442,2]
[313635689,1707508239724,-2817.74923726,0.00024442,2]
[313635690,1707508239733,-500.0,0.00024443,2]
[313635691,1707508239743,-500.0,0.00024443,2]
[313635692,1707508239752,-500.0,0.00024443,2]
[313635693,1707508239761,-167.94553015,0.00024443,2]
[313635694,1707508239771,-685.40446996,0.00024443,2]
[313635695,1707508239780,-500.0,0.00024443,2]
[313635696,1707508239789,-500.0,0.00024443,2]
[313635697,1707508239798,-500.0,0.00024443,2]
[313635698,1707508239807,-685.40446996,0.00024443,2]
[313635699,1707508239816,-511.39573866,0.00024443,2]
[313635700,1707508239825,-500.0,0.00024443,2]
[313635701,1707508239835,-685.40446996,0.00024443,2]
[313635702,1707508239844,-230.01407147,0.00024443,2]
[313635703,1707508239853,-520.16085627,0.00024443,2]
[313635704,1707508239863,-500.0,0.00024443,2]
[313635705,1707508239872,-685.40446996,0.00024443,2]
[313635706,1707508239882,-685.40446996,0.00024443,2]
[313635707,1707508239891,-500.0,0.00024443,2]
[313635709,1707508239901,-444.96489859,0.00024443,2]
[313635710,1707508239911,-685.40446996,0.00024443,2]
[313635711,1707508239920,-685.40446996,0.00024443,2]
[313635712,1707508239930,-500.0,0.00024443,2]
[313635713,1707508239940,-685.40446996,0.00024443,2]
[313635714,1707508239949,-590.61020663,0.00024443,2]
[313635715,1707508239959,-685.40446996,0.00024443,2]
[313635716,1707508239968,-685.40446996,0.00024443,2]
[313635717,1707508239978,-685.40446996,0.00024443,2]
[313635723,1707508240062,-685.40446996,0.00024443,2]
[313635725,1707508240072,-685.40446996,0.00024443,2]
[313635726,1707508240081,-685.40446996,0.00024443,2]
[313635727,1707508240091,-685.40446996,0.00024443,2]
[313635728,1707508240100,-685.40446996,0.00024443,2]
[313635729,1707508240109,-685.40446996,0.00024443,2]
[313635730,1707508240119,-685.40446996,0.00024443,2]
[313635731,1707508240129,-685.40446996,0.00024443,2]
[313635732,1707508240138,-685.40446996,0.00024443,2]
[313635733,1707508240148,-685.40446996,0.00024443,2]
[313635734,1707508240158,-685.40446996,0.00024443,2]
[313635735,1707508240169,-685.40446996,0.00024443,2]
[313635736,1707508240179,-685.40446996,0.00024443,2]
[313635737,1707508240189,-685.40446996,0.00024443,2]
[313635738,1707508240200,-685.40446996,0.00024443,2]
[313635739,1707508240210,-685.40446996,0.00024443,2]
[313635740,1707508240220,-685.40446996,0.00024443,2]
[313635741,1707508240231,-685.40446996,0.00024443,2]
[313635742,1707508240241,-685.40446996,0.00024443,2]
[313635743,1707508240251,-685.40446996,0.00024443,2]
[313635744,1707508240262,-685.40446996,0.00024443,2]
[313635745,1707508240272,-685.40446996,0.00024443,2]
[313635746,1707508240282,-685.40446996,0.00024443,2]
[313635747,1707508240292,-685.40446996,0.00024443,2]
[313635748,1707508240301,-685.40446996,0.00024443,2]
[313635749,1707508240311,-685.40446996,0.00024443,2]
[313635750,1707508240320,-685.40446996,0.00024443,2]
[313635751,1707508240331,-685.40446996,0.00024443,2]
[313635752,1707508240340,-685.40446996,0.00024443,2]
[313635753,1707508240349,-685.40446996,0.00024443,2]
[313635754,1707508240359,-685.40446996,0.00024443,2]
[313635755,1707508240368,-685.40446996,0.00024443,2]
[313635756,1707508240377,-685.40446996,0.00024443,2]
[313635757,1707508240386,-685.40446996,0.00024443,2]
[313635758,1707508240395,-685.40446996,0.00024443,2]
[313635759,1707508240404,-685.40446996,0.00024443,2]
[313635760,1707508240412,-685.40446996,0.00024443,2]
[313635761,1707508240422,-685.40446996,0.00024443,2]
[313635762,1707508240431,-685.40446996,0.00024443,2]
[313635763,1707508240441,-685.40446996,0.00024443,2]
[313635764,1707508240450,-685.40446996,0.00024443,2]
[313635765,1707508240459,-685.40446996,0.00024443,2]
[313635766,1707508240468,-685.40446996,0.00024443,2]
[313635767,1707508240484,-685.40446996,0.00024443,2]
[313635768,1707508240499,-685.40446996,0.00024443,2]
[313635769,1707508240509,-685.40446996,0.00024443,2]
[313635770,1707508240520,-685.40446996,0.00024443,2]
[313635771,1707508240531,-685.40446996,0.00024443,2]
[313635772,1707508240541,-685.40446996,0.00024443,2]
[313635773,1707508240551,-685.40446996,0.00024443,2]
[313635774,1707508240561,-685.40446996,0.00024443,2]
[313635775,1707508240571,-685.40446996,0.00024443,2]
[313635776,1707508240581,-685.40446996,0.00024443,2]
[313635777,1707508240591,-685.40446996,0.00024443,2]
[313635778,1707508240601,-685.40446996,0.00024443,2]
[313635779,1707508240612,-685.40446996,0.00024443,2]
[313635780,1707508240622,-685.40446996,0.00024443,2]
[313635781,1707508240632,-685.40446996,0.00024443,2]
[313635782,1707508240642,-685.40446996,0.00024443,2]
[313635783,1707508240652,-685.40446996,0.00024443,2]
[313635784,1707508240665,-685.40446996,0.00024443,2]
[313635785,1707508240675,-685.40446996,0.00024443,2]
[313635786,1707508240686,-1230.2450796,0.00024443,2]
[313635787,1707508240696,-1230.2450796,0.00024443,2]
[313635788,1707508240707,-1230.2450796,0.00024443,2]
[313635789,1707508240717,-1230.2450796,0.00024443,2]
[313635790,1707508240727,-1230.2450796,0.00024443,2]
[313635791,1707508240737,-1230.2450796,0.00024443,2]
[313635792,1707508240748,-1230.2450796,0.00024443,2]
[313635793,1707508240759,-1230.2450796,0.00024443,2]
[313635794,1707508240770,-1230.2450796,0.00024443,2]
[313635795,1707508240779,-1230.2450796,0.00024443,2]
[313635796,1707508240790,-1230.2450796,0.00024443,2]
[313635797,1707508240800,-1230.2450796,0.00024443,2]
[313635798,1707508240811,-1230.2450796,0.00024443,2]
[313635799,1707508240821,-1230.2450796,0.00024443,2]
[313635800,1707508240831,-1230.2450796,0.00024443,2]
[313635801,1707508240840,-1230.2450796,0.00024443,2]
[313635802,1707508240850,-1230.24507958,0.00024443,2]
[313635803,1707508240859,-40343.92530027,0.00024444,2]
[313635804,1707508240876,-36126.31525166,0.00024444,2]
[313635805,1707508240888,-4295.25859703,0.00024444,2]
[313635806,1707508240901,-5200.37215077,0.00024444,2]
[313635822,1707508241166,-10385.290486,0.00024444,2]
[313635823,1707508241179,-9052.62041237,0.00024444,2]
[313635824,1707508241191,-5572.608828,0.00024444,2]
[313635825,1707508241204,-12042.12703229,0.00024444,2]
[313635854,1707508245935,-2091.43243292,0.00022318,2]
[313635855,1707508245945,-18782.90430783,0.00024444,2]
[313636609,1707508460823,600.0,0.00012,7]
[313636610,1707508460848,400.0,0.00012,7]
[313636611,1707508526388,155.11684864,0.00012,2]
[313636612,1707508538327,1097.14121501,0.00012,2]
[313636613,1707508540383,235.5072087,0.00012,2]
[313636614,1707508552365,1129.42207709,0.00012,2]
[313636615,1707508563523,257.354588,0.00012,2]
[313636616,1707508589525,169.86649056,0.00012,2]
[313636617,1707508643443,274.701918,0.00027397,120]
[313636620,1707508874646,2000.0,0.00029,30]
[313636627,1707509160870,206.026438,0.00027397,120]
[313636637,1707509345105,-3000.0,0.00019726,2]
[313636638,1707509345125,-261.94560961,0.00020274,2]
[313636639,1707509345145,-500.0,0.00020275,2]
[313636640,1707509345166,-154.90705577,0.00020276,4]
[313636641,1707509345186,-167.55699101,0.00020277,2]
[313636642,1707509345206,-195.622819,0.00020281,2]
[313636643,1707509345225,-17084.8151039,0.00020867,2]
[313636644,1707509345247,-24900.0,0.00021479,2]
[313636645,1707509345268,-200.0,0.0002191,7]
[313636646,1707509345373,-166.666666,0.00021918,2]
[313636647,1707509345395,-427.41735822,0.00022,2]
[313636648,1707509345415,-763.3743027,0.00022089,5]
[313636649,1707509345435,-1584.5340639,0.00022182,2]
[313636650,1707509345456,-1562.35102185,0.00022318,2]
[313636651,1707509345477,-2037.56060808,0.00022318,2]
[313636652,1707509345497,-731.57595316,0.00022344,2]
[313636653,1707509356107,-167.55699101,0.00019725,2]
[313636654,1707509356127,-67.04997105,0.00022344,2]
[313636756,1707509439163,-4885.36552173,0.00020178,2]
[313636758,1707509439176,-2528.28432697,0.00020178,2]
[313636760,1707509439290,-5214.85721314,0.00020178,2]
[313636761,1707509439300,-38.49222504,0.00022089,4]
[313636762,1707509439318,-116.41483073,0.00022089,4]
[313636763,1707509439327,-135.00988997,0.00022344,2]
[313636764,1707509439339,-164.99011003,0.00022344,2]
[313636765,1707509439348,-7.54001984,0.00022344,2]
[313636766,1707509439358,-164.43687013,0.00023455,2]
[313636774,1707509441405,-5261.09243807,0.00023455,2]
[313636776,1707509441416,-859.89610086,0.00023455,2]
[313636778,1707509441425,-5000.0,0.00023455,2]
[313636780,1707509441435,-6853.50279828,0.00023455,2]
[313636782,1707509441445,-5000.0,0.00023455,2]
[313636783,1707509441454,-153.0,0.00023678,2]
[313636784,1707509441464,-153.0,0.00023678,2]
[313636785,1707509441474,-407.4010052,0.00023678,2]
[313636786,1707509441484,-153.0,0.00023678,2]
[313636788,1707509441494,-153.0,0.00023678,2]
[313636790,1707509441504,-200.0032966,0.00023678,2]
[313636791,1707509441514,-153.0,0.00023678,2]
[313636793,1707509441524,-281.3631985,0.00023778,2]
[313636795,1707509441534,-245.0436255,0.00023778,2]
[313636796,1707509441543,-259.7945056,0.00023778,2]
[313636797,1707509441553,-153.0,0.00023778,2]
[313636798,1707509441563,-168.1052113,0.00023778,2]
[313636799,1707509441573,-153.0,0.00023778,2]
[313636800,1707509441583,-153.0,0.00023778,2]
[313636801,1707509441592,-153.0,0.00023778,2]
[313636802,1707509441602,-200.0032966,0.000238,2]
[313636803,1707509441611,-153.0,0.000238,2]
[313636804,1707509441621,-1274.40857207,0.00023807,5]
[313636805,1707509441631,-280.0,0.00024101,7]
[313636806,1707509441641,-158.8308104,0.00024384,2]
[313636807,1707509441651,-198.4773725,0.00024384,2]
[313636808,1707509441660,-17497.4069012,0.00024445,2]
[313636809,1707509441671,-498.66582765,0.0002447,5]
[313636810,1707509441680,-200.0032966,0.000245,2]
[313636811,1707509441691,-2733.09,0.00024533,3]
[313636812,1707509441701,-2277.58,0.00024533,3]
[313636813,1707509441712,-422.50942411,0.00024533,3]
[313636972,1707509446086,-398.8144118,0.00023312,2]
[313636973,1707509446096,-1475.47057589,0.00024533,3]
[313636974,1707509446105,-155.02635448,0.00024542,2]
[313636975,1707509446115,-198.22118061,0.00024542,2]
[313636976,1707509446124,-179.15995042,0.00024542,2]
[313636977,1707509446133,-155.14926081,0.00024543,2]
[313636978,1707509446143,-2185.05668609,0.00024543,2]
[313636979,1707509446171,-1396.69257892,0.00024543,2]
[313636981,1707509619034,206.026438,0.00027397,120]
[313636985,1707509649007,150.0,0.00029,30]
[313636986,1707509746204,-5000000.0,0.00042903,60]
[313636989,1707509773243,2000.0,0.00029,30]
[313636992,1707509843886,786.0289051,0.0001715,2]
[313636993,1707509884151,154.90705577,0.0001715,2]
[313636994,1707509888217,159.35440713,0.00017149,2]
[313636995,1707509890580,294.63300604,0.00017149,2]
[313636996,1707509897203,150.0,0.00029,30]